[Event "Bangabandhu Premier Div League 2022"]
[Site "Dhaka"]
[Date "2022.12.01"]
[Round "2.1"]
[White "Hossain, Enamul"]
[Black "Rahman, Ziaur"]
[Result "1-0"]
[ECO "B43"]
[WhiteElo "2392"]
[BlackElo "2464"]
[Annotator "TA"]
[PlyCount "109"]
[EventDate "2022.11.30"]
[EventType "team-tourn"]
[EventCountry "BAN"]
[SourceTitle "playchess.com"]
[Source "ChessBase"]
[SourceQuality "1"]
[TimeControl "40/5400+30:1800+30"]

{[%evp 15,109,35,32,31,37,21,14,23,21,18,33,37,37,52,70,66,175,167,161,167,166,166,213,179,197,147,145,72,63,66,144,147,211,170,165,178,162,109,384,357,360,207,207,207,207,207,207,214,200,165,250,259,241,212,250,246,290,243,323,322,277,182,188,182,252,241,407,370,389,337,370,377,544,521,849,861,807,832,573,740,722,748,1014,1006,1125,1114,12842,12842,12843,12843,12843,12841,29991,29990,29990,29991]} 1. e4 {[%emt 0:00:11]} c5 {[%emt 0:01:48]} 2. Nf3 {[%emt 0:00:53]} e6 {[%emt 0:01:46]} 3. d4 {[%emt 0:01:23]} cxd4 {[%emt 0:00:06]} 4. Nxd4 {[%emt 0:00:05]} a6 {[%emt 0:00:17]} 5. Nc3 {[%emt 0:00:24]} b5 {[%emt 0:00:07]} 6. Bd3 {[%emt 0:00:21]} Bb7 {[%emt 0:00:10]} 7. O-O {[%emt 0:00:27]} Nc6 {[%emt 0:00:19]} 8. Nxc6 {[%emt 0:00:57]} Bxc6 {[%emt 0:00:06]} 9. Re1 {[%emt 0:00:14] B43: Sicilian: Kan Variation: 5 Nc3.} Qb8 {[%emt 0:00:24] 9...Ne7 is becoming the main line.} 10. Nd5 {[%emt 0:03:07]} Bd6 {[%emt 0:02:17] [#] Against Bf4} 11. Qh5 $1 {[%emt 0:02:19][%cal Oe4e5] The position is equal.} Ne7 {[%emt 0:04:23] Prevents e5.} (11... Kf8 {is interesting.} 12. e5 Bxe5 13. Nb4 Bf6) 12. Nxe7 {[%emt 0:00:50]} Bxe7 {[%emt 0:00:27]} 13. e5 {[%emt 0:00:50] [#]} Qb7 $146 {[%emt 0:07:17]} ({Predecessor:} 13... g6 14. Qh6 Bf8 15. Qg5 Bg7 16. Bf4 O-O 17. h4 b4 18. Rad1 a5 19. Qg3 h5 {½-½ (38) Hassim,U (2261)-Brzezinski,B (2225) ICCF email 2016}) 14. Bg5 {[%emt 0:10:46]} (14. Bxh7 Rc8 15. c3 b4 $17) 14... Bxg5 {[%emt 0:09:41]} 15. Qxg5 {[%emt 0:00:49]} h6 {[%emt 0:03:54]} (15... g6 $14) 16. Qxg7 $18 {[%emt 0:06:06]} O-O-O {[%emt 0:00:38]} 17. g3 $1 {[%emt 0:00:22]} (17. Qxf7 Bxg2 18. Re3 Rdf8 $11) 17... h5 {[%emt 0:03:09]} 18. h4 {[%emt 0:04:52]} (18. Qxf7 $6 Rdf8 19. Qe7 Qb6 $14) 18... Rhg8 {[%emt 0:12:31]} (18... Qb6 {was called for.} 19. Qg5 (19. Qxf7 $2 Rdf8 $19) 19... Qd4) 19. Qh6 {[%emt 0:06:46]} (19. Qxf7 $2 Rdf8 $19) 19... Rg4 {[%emt 0:01:07]} 20. Kh2 {[%emt 0:10:48]} (20. Qxh5 Rdg8 21. Re3 (21. Qxf7 Qa7 $11) 21... Qa7) ({White should try} 20. Re3 $18) 20... Rdg8 $16 {[%emt 0:01:09][%cal Oc6h1] ...Bh1! is the strong threat.} 21. Re3 {[%emt 0:06:50] White is more active.} (21. Qxh5 $6 Qb6 22. Re2 (22. Qxf7 Qd4 $17) 22... Qd4 $11) (21. Qe3 $142) 21... Qb6 {[%emt 0:08:42] aiming for ...f5.} 22. c3 {[%emt 0:20:21] Hoping for Be2.} (22. Qxh5 Rxg3 $3 {[%mdl 512]} 23. Bf1 Rxe3 24. Rd1 Rf3) 22... Qc5 {[%emt 0:02:31]} ({Black should play} 22... Qd8 $1 $14 23. Qxh5 f5 24. exf6 Qxf6) 23. Rg1 {[%emt 0:09:54]} (23. Qxh5 $2 Rxg3 $3 {[%mdl 512]} 24. Rae1 Rg2+ 25. Kh3 Rxf2 $19) 23... Kc7 {[%emt 0:07:33]} (23... Qe7 $16 24. Qf6 (24. Qxh5 f5 $16) 24... Qxf6 25. exf6 Rh8) 24. Qf6 {[%emt 0:04:26]} (24. Qxh5 f5 25. b4 (25. Be2 $2 f4 $19) 25... Qd5 $17) 24... a5 {[%emt 0:03:58]} 25. a3 {[%emt 0:00:27]} (25. Qxf7 $2 Rf8 $19) 25... a4 {[%emt 0:00:15]} 26. Be2 {[%emt 0:04:54]} (26. Qxf7 $2 Rf8 $19) (26. Qh6 $18) 26... R4g6 $2 {[%emt 0:08:44][%mdl 8192] Black cannot hold the game after this.} (26... R8g6 $16 {is a better defense.} 27. Qxf7 Rg8 28. Bxg4 Rf8) 27. Qf4 $18 {[%emt 0:00:09]} (27. Qxf7 $2 {perishes.} Rf8 $19) 27... Rh8 {[%emt 0:00:37]} 28. Qd4 {[%emt 0:00:39]} (28. Qxf7 $2 {too greedy.} Rf8 $19) (28. Rd1 $142) 28... Qxd4 {[%emt 0:01:01]} 29. cxd4 {[%emt 0:00:01]} f5 {[%emt 0:00:32]} 30. f4 {[%emt 0:00:59]} Rgg8 {[%emt 0:01:59]} 31. Rc1 {[%emt 0:00:38] Prevents b4.} Rb8 {[%emt 0:00:16]} 32. Bf3 {[%emt 0:01:13]} b4 {[%emt 0:00:48] [#]} (32... Kb7 $142 33. d5 exd5) 33. d5 $1 {[%emt 0:01:00]} exd5 {[%emt 0:00:34]} 34. Bxd5 {[%emt 0:00:07]} bxa3 {[%emt 0:00:57]} 35. bxa3 {[%emt 0:00:05]} Rb2+ {[%emt 0:00:06]} 36. Kh3 {[%emt 0:00:47]} Kb6 {[%emt 0:01:33]} 37. Bxc6 {[%emt 0:00:59]} dxc6 {[%emt 0:00:06][%mdl 4096] Endgame KRR-KRR} 38. Rec3 {[%emt 0:02:01]} Rc8 {[%emt 0:04:22]} 39. Rc5 {[%emt 0:01:11]} Rb3 {[%emt 0:01:31] [#]} (39... Rb5 $142 40. R5c4 c5 41. Rxa4 Rd8) 40. e6 $1 {[%emt 0:00:17]} Rxa3 $2 {[%emt 0:00:36]} (40... Rb5 41. R5c4 Rb3) 41. Rxf5 {[%emt 0:30:23]} Re3 {[%emt 0:32:04] Prevents Re1.} 42. Rb1+ {[%emt 0:00:39]} ({Less strong is} 42. Rxh5 c5 43. f5 Ra8 $18) 42... Kc7 {[%emt 0:06:47]} 43. Rxh5 {[%emt 0:00:00] And now f5 would win.} Ra8 {[%emt 0:00:00]} (43... Rxe6 $142 44. Ra5 Re4) 44. f5 {[%emt 0:00:00] Strongly threatening Rh7+.} a3 {[%emt 0:00:00]} 45. Rh7+ {[%emt 0:00:00]} Kd6 {[%emt 0:00:00]} 46. Rd1+ {[%emt 0:00:00]} Kc5 {[%emt 0:00:00]} 47. Rc1+ {[%emt 0:00:00]} Kb6 {[%emt 0:00:00]} 48. Rg7 {[%emt 0:00:00]} a2 {[%emt 0:00:00]} 49. Ra1 {[%emt 0:00:00]} Kc5 {[%emt 0:00:00]} 50. e7 {[%emt 0:00:00]} Kb4 {[%emt 0:00:00]} 51. f6 {[%emt 0:00:00]} Kb3 {[%emt 0:00:00]} 52. f7 {[%emt 0:00:00]} Rxe7 {[%emt 0:00:00]} 53. f8=Q {[%emt 0:00:00]} Rae8 {[%emt 0:09:52]} 54. Qxe7 Rxe7 {[%emt 0:00:00]} 55. Rxe7 {[%emt 0:00:00] Weighted Error Value: White=0.18 (very precise) /Black=0.42} 1-0

[Event "Bangabandhu Premier Div League 2022"]
[Site "Dhaka"]
[Date "2022.12.01"]
[Round "2.1"]
[White "abzid, Rahman"]
[Black "Masum, Hossain"]
[Result "1-0"]
[ECO "E12"]
[WhiteElo "2043"]
[BlackElo "2103"]
[Annotator "TA"]
[PlyCount "77"]
[EventDate "2022.12.01"]
[EventCountry "BAN"]
[SourceTitle "playchess.com"]
[Source "ChessBase"]
[SourceQuality "1"]
[TimeControl "40/5400+30:1800+30"]

{[%evp 12,77,86,87,83,89,94,97,96,89,92,85,77,74,119,75,92,83,83,57,57,0,6,0,7,0,0,0,0,-19,31,61,43,-16,20,44,167,183,286,277,281,283,274,278,498,527,816,791,1059,984,29986,29987,29987,29986,29986,2670,5377,3365,29988,1754,29988,29989,29989,29990,29990,29991,29991,29992]} 1. d4 {[%emt 0:00:09]} Nf6 {[%emt 1:31:00]} 2. c4 {[%emt 0:00:54]} e6 {[%emt 0:00:30]} 3. Nf3 {[%emt 0:01:34]} c5 {[%emt 0:00:00]} 4. a3 {[%emt 1:29:53]} b6 {[%emt 0:01:00]} 5. Nc3 {[%emt 0:00:00]} Bb7 {[%emt 0:00:30]} 6. d5 {[%emt 0:00:00]} exd5 {[%emt 0:00:00]} 7. cxd5 {[%emt 0:00:00]} (7. Nxd5 Nxd5 8. cxd5 Bd6 $11) 7... d6 {[%emt 0:01:00] E12: Queen's Indian: Unusual White 4th moves, 4 a3, 4 Nc3 Bb7 5 a3 and 4 Nc3 Bb7 .} 8. e4 {[%emt 0:00:00]} a6 {[%emt 0:00:00]} 9. a4 {[%emt 0:00:00]} g6 {[%emt 0:01:00] White is better.} 10. Bd3 {[%emt 0:00:00]} Bg7 {[%emt 0:00:00]} 11. O-O {[%emt 0:00:00]} O-O {[%emt 0:00:00]} 12. Bf4 {[%emt 0:00:00]} Re8 {[%emt 0:00:00]} 13. Re1 {[%emt 0:00:00] White is more active.} Nh5 {[%emt 0:00:00]} 14. Bg5 {[%emt 0:05:00] [#]} Qc7 $146 {[%emt 0:02:30]} ({Predecessor:} 14... Qc8 15. Nd2 Nd7 16. Nc4 Qc7 17. Qd2 Rab8 18. Be2 Nhf6 19. Qf4 h6 20. Bxf6 Bxf6 21. Qxd6 Qxd6 22. Nxd6 Bxc3 23. bxc3 {1-0 (33) Kulcsar,M (2150)-Izso,L Hungary 2004}) 15. Qd2 {[%emt 0:00:00]} Nd7 {[%emt 0:00:00]} 16. g4 {[%emt 0:00:00]} (16. Be3 $14) 16... Nhf6 $11 {[%emt 0:00:00]} 17. Qf4 {[%emt 0:01:30]} h6 {[%emt 0:01:30]} 18. Bxh6 {[%emt 0:00:00]} Bxh6 {[%emt 0:00:00]} 19. Qxh6 {[%emt 0:00:00] Ng5 is the strong threat.} Nxg4 {[%emt 0:01:00]} 20. Qg5 {[%emt 0:00:00]} (20. Qh3 $5 {[%cal Rh3g4]} Ngf6 21. Ng5 $11) 20... Nde5 {[%emt 0:00:30]} (20... Nge5 21. Nxe5 Rxe5) (20... Nge5 $11 21. Re3 Qd8) 21. Nxe5 $14 {[%emt 0:00:00]} Nxe5 {[%emt 0:00:00]} 22. Re3 {[%emt 0:00:00] Inhibits Nf3+.} (22. Be2) (22. Be2 $1 $14) 22... Kg7 {[%emt 0:01:00]} (22... Nxd3 23. Rxd3 Re5) (22... Nxd3 {simplifies} 23. Rxd3 Re5 24. Qg2 Rh5) 23. Be2 {[%emt 0:03:00]} b5 {[%emt 0:00:00] A mistake that costs the game.} ({Better is} 23... Nd7 $14) 24. axb5 $18 {And now f4 would win.} f6 {[%emt 0:01:00] [#]} (24... Rh8 {was necessary.} 25. f4 (25. bxa6 c4 $16) 25... Nd7) 25. Qg2 $1 {[%emt 0:00:00]} axb5 {[%emt 0:00:30]} 26. Rxa8 {[%emt 0:00:00]} Rxa8 {[%emt 0:00:30]} 27. f4 {[%emt 0:02:00]} Ra1+ $2 {[%emt 0:00:30]} (27... Nf7 28. Bh5 (28. Bxb5 Ra1+ 29. Kf2 Rc1 $16) (28. Nxb5 Ra1+ 29. Kf2 Qb6 $16) 28... Rg8) 28. Kf2 {[%emt 0:00:30]} Nf7 {[%emt 0:00:30]} 29. Bh5 {[%emt 0:00:30]} (29. Nxb5 Qb6 $16) (29. Bxb5 Rc1 $16) 29... g5 {[%emt 0:00:00]} 30. fxg5 (30. Nxb5 Qa5 31. Nc3 Ba6 $16) 30... Ne5 {[%emt 0:01:00]} 31. gxf6+ {[%emt 0:01:00]} Kxf6 {[%emt 0:00:00]} 32. Qg8 Qc8 {[%emt 0:01:00] [#]} 33. Qh7 {[%emt 0:01:00]} (33. Rf3+ $142 $1 {[%mdl 512]} Nxf3 34. Qf7+ Kg5 35. Qg6+ Kh4 36. Bxf3 (36. Kxf3 $2 Qh3+ 37. Ke2 Bc8 $19) 36... Rf1+ 37. Kxf1 Qh3+ 38. Kf2) 33... Qf8 {[%emt 0:00:30]} 34. Rg3 {[%emt 0:00:00] White wants to mate with Bf3.} b4 {[%emt 0:00:30]} 35. Rg8 {[%emt 0:01:00]} ({Not} 35. Qxb7 bxc3 36. bxc3 Ra2+ 37. Kf1 (37. Kg1 Qh6 $16) 37... Ra1+ 38. Kf2 (38. Kg2 Ra2+ 39. Kf1 Ra1+ 40. Kg2 Ra2+ 41. Kh3 Qe7 $16) 38... Ra2+ 39. Kg1 Qh6 $16) (35. Bf3 $142 Ng4+ 36. Bxg4 Ke5+ 37. Rf3 Qxf3+ 38. Bxf3 Kd4 39. Nb5+ Kc4 40. Nxd6+ Kb3 41. Qxb7) 35... Nd3+ {[%emt 0:00:30]} 36. Ke3 {[%emt 0:00:30][%cal Bf2e3,Be3d3,Bd3d2,Bd2e1][%mdl 32] White mates.} Re1+ {[%emt 0:00:30]} 37. Kxd3 {[%emt 0:00:30]} Ba6+ {[%emt 0:00:30]} 38. Kd2 {[%emt 0:00:30]} bxc3+ {[%emt 0:00:30]} 39. Kxe1 {[%emt 0:00:30] Weighted Error Value: White=0.09 (flawless) /Black=0.81} 1-0

[Event "Bangabandhu Premier Div League 2022"]
[Site "Dhaka"]
[Date "2022.12.01"]
[Round "2.2"]
[White "Chanda, Sandipan"]
[Black "Mohammad Fahad, Rahman"]
[Result "1/2-1/2"]
[ECO "D02"]
[WhiteElo "2474"]
[BlackElo "2380"]
[Annotator "TA"]
[PlyCount "113"]
[EventDate "2022.11.30"]
[EventType "team-tourn"]
[EventCountry "BAN"]
[SourceTitle "playchess.com"]
[Source "ChessBase"]
[SourceQuality "1"]
[TimeControl "40/5400+30:1800+30"]

{[%evp 9,113,0,0,0,0,0,0,-13,7,0,0,0,0,0,0,0,0,0,0,0,0,-2,0,0,0,0,0,0,0,-20,0,-39,-30,-40,0,0,0,0,0,0,4,0,14,-21,0,0,0,0,0,0,15,21,86,24,23,23,14,12,12,0,0,-8,0,0,0,0,0,-8,0,0,0,0,0,0,0,0,0,0,0,0,0,0,0,0,0,0,0,0,0,0,0,0,0,0,0,0,0,0,0,0,0,0,0,0,0,0]} 1. d4 {[%emt 0:00:04]} d5 {[%emt 0:00:28]} 2. Nf3 {[%emt 0:00:08]} Nf6 {[%emt 0:00:16]} 3. Bf4 {[%emt 0:00:05]} c5 {[%emt 0:00:38]} 4. e3 {[%emt 0:00:07]} Nc6 {[%emt 0:00:11]} 5. Nbd2 {[%emt 0:00:06]} Qb6 {[%emt 0:00:15][%csl LRb2,LRd4][%cal Rc5d4]} 6. dxc5 {[%emt 0:00:06] D02: 1 d4 d5 2 Nf3 sidelines, including 2...Nf6 3 g3 and 2...Nf6 3 Bf4.} Qxb2 {[%emt 0:00:13]} 7. Rb1 {[%emt 0:00:07] Inhibits e6.} Qc3 {[%emt 0:00:04]} 8. Bb5 {[%emt 0:00:11] Against e6} g6 $1 {[%emt 0:00:02][%cal Of8g7][%mdl 4] is recently more successful than 8...e6.} 9. O-O {[%emt 0:00:15] [#] Threatens to win with Be5.} Bg7 $1 {[%emt 0:00:08]} 10. Nb3 {[%emt 0:00:18][%cal Oe3e4,Bd2b3,Bb3c1,Bc1d3,Bd3b2,Bb2a4,Ba4c3][%mdl 32]} O-O {[%emt 0:00:06]} 11. Bxc6 {[%emt 0:00:05]} bxc6 {[%emt 1:33:39]} 12. Be5 {[%emt 0:00:04]} Qc4 {[%emt 0:00:00]} 13. Qd4 {[%emt 0:00:07]} Qxd4 {[%emt 0:00:00]} 14. exd4 {[%emt 0:00:05]} a5 {[%emt 0:00:00]} 15. Nc1 {[%emt 0:00:22] [#]} Nd7 $146 {[%emt 0:00:00]} ({Predecessor:} 15... Bg4 16. Re1 Ra7 17. Nd3 Bh6 18. Bb8 Ra8 19. Bg3 Be6 20. Nde5 Rfc8 21. Rb6 Ne4 22. Nxc6 {1-0 (47) Jarmula,L (2452)-Ulasevich,S (2217) Bydgoszcz 2022}) 16. Bxg7 {[%emt 0:01:09]} Kxg7 {[%emt 0:00:00]} 17. Re1 {[%emt 0:10:49]} Re8 {[%emt 0:00:00]} 18. Nd3 {[%emt 0:07:26]} f6 {[%emt 0:00:00] Prevents Nfe5.} 19. Re3 {[%emt 0:01:56]} Kf7 {[%emt 0:00:00]} 20. Nb2 {[%emt 0:24:47]} Ba6 {[%emt 0:00:00]} 21. Rb3 {[%emt 0:03:41]} e5 {[%emt 0:00:00]} (21... Rab8 {simplifies} 22. Na4 Bc4 23. Rxb8 Rxb8 24. Rxb8 Nxb8 25. Nc3 Na6) 22. Na4 {[%emt 0:01:29]} Bb5 {[%emt 0:00:00]} 23. Nc3 {[%emt 0:00:51]} Ba6 {[%emt 0:00:00]} 24. Ra3 {[%emt 0:04:03]} Bc4 {[%emt 0:00:00]} 25. Rb7 {[%emt 0:00:19]} Re7 {[%emt 0:00:00]} 26. Na4 {[%emt 0:03:21]} exd4 {[%emt 0:00:00]} 27. h3 {[%emt 0:00:09]} Bb5 $1 {[%emt 0:00:00] [#] ...Bxa4 is the strong threat.} 28. Nxd4 {[%emt 0:02:17]} Bxa4 {[%emt 0:00:00]} 29. Rxa4 {[%emt 0:00:03]} Ra6 {[%emt 0:00:00]} 30. Nb3 {[%emt 0:00:53]} Re1+ {[%emt 0:00:00]} 31. Kh2 {[%emt 0:00:01] White is more active.} Ke8 {[%emt 0:00:00]} 32. Rxa5 {[%emt 0:11:02]} Rxa5 {[%emt 0:00:00]} 33. Nxa5 $11 {[%emt 0:00:08][%mdl 4096] Endgame KRN-KRN. The position is equal.} Re2 {[%emt 0:00:00]} 34. Rc7 {[%emt 0:16:25]} Rxc2 {[%emt 0:01:20]} 35. Nb3 {[%emt 0:00:30]} Rxa2 {[%emt 0:02:13]} 36. Rxc6 {[%emt 0:00:11]} Rc2 {[%emt 0:03:31]} 37. Re6+ {[%emt 0:05:13]} Kf7 {[%emt 0:00:38]} 38. Ra6 {[%emt 0:01:11] Strongly threatening c6.} Rc3 {[%emt 0:01:31] Against c6} (38... Rxf2 $2 39. c6 Ne5 40. Ra7+ (40. Nd4 Ke7 $18) 40... Kf8 41. c7 $18 (41. Rxh7 Nxc6 42. Nc5 Ke8 $17)) (38... Nxc5 $2 39. Ra7+ (39. Rc6 Nxb3 40. Rxc2 Ke6 $16) 39... Ke8 40. Rc7 $18) (38... Ke7 {simplifies} 39. Ra5 h5 40. Rb5 g5) 39. c6 {[%emt 0:02:26]} Rxb3 {[%emt 0:01:17]} 40. cxd7 {[%emt 0:01:39] KR-KR} Rb8 {[%emt 0:04:00] Against d8Q} 41. Rd6 {[%emt 0:30:17]} (41. Rc6 $5 Rd8 $8 42. Rd6 $11) 41... Rd8 {[%emt 0:26:35]} 42. Kg3 {[%emt 0:00:11]} Ke7 {[%emt 0:00:10][%csl LRd6,LRd7]} 43. Rxd5 {[%emt 0:00:03]} Rxd7 {[%emt 0:00:07]} 44. Rxd7+ {[%emt 0:00:06]} Kxd7 {[%emt 0:00:04] K3P-K3P} 45. Kf4 {[%emt 0:00:02]} h5 {[%emt 0:00:00]} 46. h4 {[%emt 0:00:00]} Ke6 {[%emt 0:00:00]} 47. f3 {[%emt 0:00:00]} Kd5 {[%emt 0:00:00]} 48. Ke3 {[%emt 0:00:00]} Ke5 {[%emt 0:00:00]} 49. f4+ {[%emt 0:00:00]} Kf5 {[%emt 0:00:00]} 50. Kf3 {[%emt 0:00:00]} g5 {[%emt 0:00:00]} 51. g3 {[%emt 0:00:00]} gxf4 {[%emt 0:00:00]} 52. gxf4 {[%emt 0:00:00] KPP-KPP} Ke6 {[%emt 0:00:00] ( -> ...Kf5)} 53. Ke4 {[%emt 0:00:00]} f5+ $1 {[%emt 0:00:00]} 54. Kd4 {[%emt 0:00:00] Kc5 would kill now.} Kd6 {[%emt 0:00:00]} 55. Kc4 {[%emt 0:00:00]} Kc6 $1 {[%emt 0:00:00]} 56. Kd4 {[%emt 0:00:00] White threatens Ke5 and mate.} Kd6 {[%emt 0:00:00]} 57. Kc4 {[%emt 0:14:12] Weighted Error Value: White=0.04 (flawless) /Black=0.04 (flawless)} 1/2-1/2

[Event "Bangabandhu Premier Div League 2022"]
[Site "Dhaka"]
[Date "2022.12.01"]
[Round "2.2"]
[White "Aaryan Varshney"]
[Black "Aradhya, Garg"]
[Result "1/2-1/2"]
[ECO "D10"]
[WhiteElo "2312"]
[BlackElo "2289"]
[Annotator "TA"]
[PlyCount "80"]
[EventDate "2022.12.01"]
[EventCountry "BAN"]
[SourceTitle "playchess.com"]
[Source "ChessBase"]
[SourceQuality "1"]
[TimeControl "40/5400+30:1800+30"]

{[%evp 17,80,16,18,18,18,15,18,14,12,11,20,18,19,19,22,13,29,22,32,28,80,31,37,20,38,14,19,0,38,25,34,0,0,0,0,0,0,0,0,0,0,0,0,0,6,0,0,0,0,0,0,0,0,0,0,-8,-8,-8,0,0,0,0,0,-8,0]} 1. d4 {[%emt 0:00:03]} d5 {[%emt 0:00:01]} 2. c4 {[%emt 0:00:05]} c6 {[%emt 0:00:03]} 3. cxd5 {[%emt 0:00:03]} cxd5 {[%emt 1:31:56]} 4. Nc3 {[%emt 0:00:04]} Nf6 {[%emt 0:00:00]} 5. Bf4 {[%emt 0:00:05]} Nc6 {[%emt 0:00:00]} 6. e3 {[%emt 0:00:04]} a6 {[%emt 0:00:00]} 7. Bd3 {[%emt 0:00:05]} Bg4 {[%emt 0:00:00][%cal Bc8g4,Bg4h5,Bh5g6][%mdl 32]} 8. Nge2 {[%emt 0:00:08]} e6 {[%emt 0:00:00]} 9. O-O {[%emt 0:00:24]} Bd6 {[%emt 0:00:00]} 10. f3 {[%emt 0:00:23] D10: Slav Defence: 3 cxd5 (without early Nf3) and 3 Nc3.} Bh5 {[%emt 0:00:00]} 11. Rc1 {[%emt 0:00:06]} Bg6 {[%emt 0:00:00]} 12. Na4 {[%emt 0:00:13]} O-O {[%emt 0:00:00]} 13. Nc5 {[%emt 0:00:13]} Bxc5 {[%emt 0:00:00]} 14. Rxc5 {[%emt 1:35:34]} Nh5 {[%emt 0:00:00]} 15. Qd2 {[%emt 0:00:30]} Bxd3 {[%emt 0:00:00]} 16. Qxd3 {[%emt 0:00:00] [#]} Qb6 $146 {[%emt 0:00:00]} ({Predecessor:} 16... Nxf4 17. Nxf4 Qb6 18. Qc3 h6 19. b4 a5 20. b5 Ne7 21. Rc1 Qd6 22. Ne2 b6 23. Rc7 Rac8 24. a4 Rxc7 25. Qxc7 {½-½ (25) Brodda,W (2596)-Olofsson,D (2556) ICCF email 2015}) 17. Qc3 {[%emt 0:00:00]} h6 {[%emt 0:07:00]} 18. Be5 {[%emt 0:00:00] g4 is the strong threat.} Rac8 {[%emt 0:00:00] [#]} (18... f6 $11 {keeps the balance.} 19. Bd6 Rfd8) 19. Rc1 {[%emt 0:00:00]} (19. g4 $1 $16 {[%cal Rg4h5]} f6 20. Bd6 (20. gxh5 fxe5 21. dxe5 Qc7 $11)) 19... Qd8 $14 {[%emt 0:01:00]} 20. Qd2 {[%emt 0:00:00]} Re8 {[%emt 0:00:00]} 21. Bf4 {[%emt 0:00:00]} Re7 {[%emt 0:01:00]} (21... Nxf4 {simplifies} 22. Nxf4 Ne7 23. Rxc8 Nxc8 24. b3 Nd6) 22. Be5 {[%emt 0:00:00]} Rd7 {[%emt 0:00:30]} 23. Qc3 {[%emt 0:00:00]} Qe7 {[%emt 0:00:30]} 24. Ng3 {[%emt 0:04:30][%cal Be2g3,Bg3h5,Bh5f4][%mdl 32]} f6 {[%emt 0:00:30] The position is equal.} 25. Nxh5 {[%emt 0:00:00] [#] Threatens to win with Bg3.} fxe5 {[%emt 0:00:00]} 26. dxe5 {[%emt 0:00:00]} Rdc7 {[%emt 0:01:00] White must now prevent ...b6.} 27. Qd2 {[%emt 0:01:30]} Nxe5 {[%emt 0:00:00]} 28. Rxc7 {[%emt 0:00:00]} Rxc7 {[%emt 0:00:00]} 29. Nf4 {[%emt 0:00:00] aiming for Rxc7.} Kf7 {[%emt 0:00:00]} 30. b3 {[%emt 0:00:00]} Qd6 {[%emt 0:00:00]} 31. Ne2 {[%emt 0:00:00]} Rxc1+ {[%emt 0:00:00]} 32. Qxc1 $11 {[%emt 0:00:00][%mdl 4096] Endgame KQN-KQN} Nc6 {[%emt 0:00:00]} 33. f4 {[%emt 0:00:00]} Qb4 {[%emt 0:03:30]} 34. Kf2 {[%emt 0:03:30]} Qe4 {[%emt 0:00:00]} 35. a3 {[%emt 0:00:00]} g5 {[%emt 0:00:00]} 36. Qd1 {[%emt 0:01:00]} gxf4 {[%emt 0:00:00]} 37. Nxf4 {[%emt 0:00:00]} Qf5 {[%emt 0:00:00]} 38. Qd3 {[%emt 0:01:00]} Kf6 {[%emt 0:00:00]} 39. Qxf5+ {[%emt 0:00:00]} Kxf5 {[%emt 0:00:00]} 40. g4+ {[%emt 0:00:00]} Ke5 {[%emt 0:03:30] Weighted Error Value: White=0.07 (flawless) /Black=0.06 (flawless)} 1/2-1/2